bitfinex-derivatives/quotes_ETHF0:USTF0_20250503
["timestamp","ask_amount","ask_price","bid_price","bid_amount"]
[1746245941929,2.68363,1835.5,1835.4,1.08925]
[1746245942121,1.08929,1835.4,1835.3,7.72313]
[1746245942427,4.35459,1835.4,1835.3,6.6338]
[1746245942620,4.35459,1835.4,1835.3,7.72315]
[1746245946627,7.98616024,1835.4,1835.3,7.72315]
[1746245947129,7.98616024,1835.4,1835.3,11.44115]
[1746245947531,7.98616024,1835.4,1835.3,4.80735]
[1746245948130,7.98616024,1835.4,1835.3,1.08935]
[1746245949032,1.08935,1835.3,1835.2,1.91657]
[1746245949232,2.76415,1835.3,1835.2,3.64797]
[1746245949827,1.08941,1835.2,1835.1,3.2078]
[1746245950024,3.56231,1835.2,1835.1,3.2078]
[1746245950233,3.56231,1835.2,1835.1,4.9025]
[1746245950435,3.56231,1835.2,1835.1,5.99197]
[1746245952333,3.56231,1835.2,1835.1,2.78417]
[1746245952535,3.56231,1835.2,1835.1,5.99197]
[1746245953236,9.01888145,1835.2,1835.1,5.99197]
[1746245954429,9.01888145,1835.2,1835.1,2.78417]
[1746245954630,9.01888145,1835.2,1835.1,5.99197]
[1746245956340,9.01888145,1835.2,1835.1,4.9025]
[1746245956534,9.01888145,1835.2,1835.1,3.2078]
[1746245956843,1.08947,1835.1,1835.0,3.718]
[1746245957035,3.63227,1835.1,1835.0,3.718]
[1746245957238,1.08953,1835.0,1834.9,5.91258]
[1746245957439,3.66163,1835.0,1834.9,5.91258]
[1746245958140,2.5721,1835.0,1834.9,9.63058]
[1746245958339,1.737,1835.0,1834.9,9.63058]
[1746245958843,2.82653,1835.0,1834.9,9.63058]
[1746245959542,2.82653,1835.0,1834.9,6.42278]
[1746245959735,2.82653,1835.0,1834.9,9.63058]
[1746245964550,5.53655242,1835.1,1835.0,1.08953]
[1746245964744,5.53655242,1835.1,1835.0,3.59103]
[1746245965249,7.14715242,1835.1,1835.0,7.30903]
[1746245966445,3.5059,1835.1,1835.0,7.30903]
[1746245972054,3.5059,1835.1,1835.0,6.2195]
[1746245973056,3.5059,1835.1,1835.0,7.30903]
[1746245974658,3.5059,1835.1,1835.0,6.2195]
[1746245974955,4.3422,1835.1,1835.0,6.2195]
[1746245975757,4.3422,1835.1,1835.0,7.30903]
[1746245977956,4.3422,1835.1,1835.0,6.2195]
[1746245978256,4.3422,1835.1,1835.0,5.3923]
[1746245979461,4.3422,1835.1,1835.0,6.48183]
[1746245979656,1.8953,1835.1,1835.0,6.48183]
[1746245980352,0.8058,1835.1,1835.0,6.48183]
[1746245980557,1.08947,1835.1,1835.0,6.48178]
[1746245985462,9.59261242,1835.2,1835.1,1.08947]
[1746245985661,9.59261242,1835.2,1835.1,3.61507]
[1746245986564,6.38481242,1835.2,1835.1,3.61507]
[1746245986865,9.59261242,1835.2,1835.1,3.61507]
[1746245987265,6.38481242,1835.2,1835.1,3.61507]
[1746245987763,6.38481242,1835.2,1835.1,2.5256]
[1746245988366,6.38481242,1835.2,1835.1,3.61507]
[1746245988564,4.73071242,1835.2,1835.1,3.61507]
[1746245989058,4.73071242,1835.2,1835.1,4.48667]
[1746245990961,4.73071242,1835.2,1835.1,2.5256]
[1746245991162,7.13891242,1835.2,1835.1,2.5256]
[1746245992567,1.08947,1835.1,1835.0,4.8075]
[1746245992864,2.80587,1835.1,1835.0,4.8075]
[1746245993967,2.80587,1835.1,1835.0,3.718]
[1746245995071,1.08953,1835.0,1834.9,3.62115]
[1746245995365,3.63773,1835.0,1834.9,3.62115]
[1746245996171,3.63773,1835.0,1834.9,10.54695]
[1746245997471,3.63773,1835.0,1834.9,7.33915]
[1746245999472,9.09430145,1835.0,1834.9,7.33915]
[1746246000265,6.28837145,1835.0,1834.9,7.33915]
[1746246002374,7.37790145,1835.0,1834.9,7.33915]
[1746246003275,7.24151776,1835.0,1834.9,7.33915]
[1746246005075,7.24151776,1835.0,1834.9,3.62115]
[1746246006180,7.24151776,1835.0,1834.9,7.33915]
[1746246006980,7.24151776,1835.0,1834.9,6.2496]
[1746246007277,8.11411776,1835.0,1834.9,2.5316]
[1746246007476,8.11411776,1835.0,1834.9,3.62119]
[1746246009080,8.11411776,1835.0,1834.9,7.33919]
[1746246010092,9.92710145,1835.0,1834.9,7.33919]
[1746246011084,9.92710145,1835.0,1834.9,3.62119]
[1746246011385,9.92710145,1835.0,1834.9,1.93959]
[1746246011584,1.08959,1834.9,1834.8,4.2974]
[1746246011787,2.79609,1834.9,1834.8,4.2974]
[1746246012183,1.08972,1834.7,1834.5,10.69267545]
[1746246012386,1.08972,1834.7,1834.6,2.5179]
[1746246012885,3.6092,1834.8,1834.6,2.5179]
[1746246013386,3.6092,1834.8,1834.7,1.6675]
[1746246013886,3.6092,1834.8,1834.7,2.75721]
[1746246014086,3.6092,1834.8,1834.7,5.3855]
[1746246014688,3.6092,1834.8,1834.7,3.718]
[1746246015188,1.08971,1834.7,1834.6,1.94013]
[1746246015386,3.60331,1834.7,1834.6,1.94013]
[1746246016090,3.60331,1834.7,1834.6,3.53743]
[1746246019987,1.94321,1834.7,1834.6,2.4477]
[1746246020192,1.08977,1834.6,1834.5,11.43663]
[1746246020394,1.88397,1834.6,1834.5,11.43663]
[1746246020590,3.54597,1834.6,1834.5,12.0211]
[1746246020992,3.54597,1834.6,1834.5,13.11093]
[1746246022095,3.54597,1834.6,1834.5,12.0211]
[1746246022390,3.54597,1834.6,1834.5,13.11093]
[1746246023493,3.54597,1834.6,1834.5,8.8133]
[1746246029102,3.54597,1834.6,1834.5,9.90313]
[1746246029302,3.54597,1834.6,1834.5,8.8133]
[1746246030808,3.54597,1834.6,1834.5,9.90313]
[1746246030809,1.08977,1834.6,1834.5,9.90313]
[1746246031104,5.58395666,1834.7,1834.6,1.08977]
[1746246031297,5.58395666,1834.7,1834.6,3.60127]
[1746246031502,5.58395666,1834.7,1834.6,2.5115]
[1746246031694,4.49420666,1834.7,1834.6,2.5115]
[1746246031894,3.64070666,1834.7,1834.6,3.60127]
[1746246036711,10.40827666,1835.0,1834.6,2.5115]
[1746246036907,7.93807666,1835.0,1834.9,1.08959]
[1746246037113,6.84850666,1835.0,1834.9,1.08959]
[1746246037306,7.93803666,1835.0,1834.9,1.08959]
[1746246037506,7.93803666,1835.0,1834.9,2.73899]
[1746246038111,7.93803666,1835.0,1834.9,6.45699]
[1746246038616,6.84850666,1835.0,1834.9,6.45699]
[1746246040217,3.64070666,1835.0,1834.9,6.45699]
[1746246040713,3.64070666,1835.1,1835.0,1.08953]
[1746246041013,3.64070666,1835.1,1835.0,3.68783]
[1746246041217,3.64070666,1835.1,1835.0,7.40583]
[1746246043317,3.64070666,1835.1,1835.0,10.61363]
[1746246044119,3.64070666,1835.1,1835.0,7.40583]
[1746246044514,2.79492,1835.2,1835.1,1.08947]
[1746246045520,2.79492,1835.2,1835.1,3.63437]
[1746246045920,1.7055,1835.2,1835.1,3.63437]
[1746246046122,5.60177666,1835.3,1835.2,1.08941]
[1746246046318,6.15130666,1835.3,1835.2,2.79541]
[1746246046524,3.64070666,1835.3,1835.2,2.79541]
[1746246047124,3.64070666,1835.3,1835.2,6.51341]
[1746246049420,2.67831,1835.4,1835.3,1.08935]
[1746246049621,1.08931,1835.4,1835.3,1.08935]
[1746246054230,1.08931,1835.4,1835.3,4.80735]
[1746246055129,1.08931,1835.4,1835.3,1.08935]
[1746246058027,7.6498,1835.5,1835.1,3.421]
[1746246058236,1.08941,1835.2,1835.1,3.421]
[1746246058627,1.94141,1835.2,1835.1,3.421]
[1746246058927,1.94141,1835.2,1835.1,4.51047]
[1746246060426,1.94141,1835.2,1835.1,3.421]
[1746246060936,1.08947,1835.1,1835.0,6.04399]
[1746246061236,1.89807,1835.1,1835.0,9.76199]
[1746246062729,1.89807,1835.1,1835.0,8.01529]
[1746246063338,1.89807,1835.1,1835.0,3.718]
[1746246063836,1.89807,1835.1,1835.0,4.80753]
[1746246064433,1.89807,1835.1,1835.0,3.718]
[1746246065339,3.47397,1835.1,1835.0,4.80753]
[1746246066133,3.47397,1835.1,1835.0,7.33053]
[1746246067227,1.08947,1835.1,1835.0,7.33053]
[1746246068141,2.81727,1835.1,1835.0,7.33053]
[1746246074243,4.50140666,1835.3,1835.0,7.33053]
[1746246074244,4.73007666,1835.3,1835.0,6.241]
[1746246074443,3.64070666,1835.3,1835.2,1.08941]
[1746246074743,4.73005666,1835.3,1835.2,1.08941]
[1746246074939,4.73005666,1835.3,1835.2,3.53981]
[1746246075145,4.73005666,1835.3,1835.2,7.25781]
[1746246076248,1.08935,1835.3,1835.2,7.25781]
[1746246076542,4.73003666,1835.4,1835.3,1.08935]
[1746246076849,3.64070666,1835.4,1835.3,2.70205]
[1746246077242,4.72999666,1835.4,1835.3,2.70205]
[1746246077642,4.72999666,1835.4,1835.3,1.6127]
[1746246077643,6.36529666,1835.4,1835.3,1.6127]
[1746246079147,6.36529666,1835.4,1835.3,2.70205]
[1746246079349,7.18449666,1835.4,1835.3,2.70205]
[1746246079548,7.18449666,1835.4,1835.3,1.6127]
[1746246081848,1.08935,1835.3,1835.2,7.9342]
[1746246082036,2.82795,1835.3,1835.2,3.421]
[1746246084045,1.08941,1835.2,1835.1,2.68216]
[1746246084249,4.31231,1835.2,1835.1,2.68216]
[1746246085148,3.52021,1835.2,1835.1,2.68216]
[1746246086150,2.4308,1835.2,1835.1,2.68216]
[1746246086349,0.7964,1835.2,1835.1,2.68216]
[1746246086851,1.08939,1835.3,1835.2,1.08941]
[1746246087046,1.08939,1835.3,1835.2,3.57321]
[1746246087449,2.67259,1835.3,1835.2,3.57321]
[1746246087752,8.13364999,1835.3,1835.2,3.57321]
[1746246090054,5.46105999,1835.3,1835.2,7.29121]
[1746246090454,5.46105999,1835.3,1835.2,10.71121]
[1746246090647,3.63962604,1835.3,1835.2,10.71121]
[1746246090842,3.63962604,1835.3,1835.2,16.14066486]
[1746246091047,5.46105999,1835.4,1835.3,1.08935]
[1746246091246,3.81011463,1835.5,1835.4,1.08929]
[1746246091750,3.81011463,1835.5,1835.4,7.81549]
[1746246092149,3.81011463,1835.5,1835.4,11.53349]
[1746246092556,1.31541463,1835.5,1835.4,11.53349]
[1746246092857,9.07570849,1835.6,1835.5,1.08923]
[1746246093155,9.07570849,1835.6,1835.5,10.28313]
[1746246093356,8.31130849,1835.6,1835.5,15.28313]
[1746246093556,6.5801085,1835.6,1835.5,15.28313]
[1746246093749,5.8229085,1835.6,1835.5,15.28313]
[1746246093950,5.8229085,1835.6,1835.5,15.30313]
[1746246094257,5.8229085,1835.6,1835.5,19.02113]
[1746246094558,5.4495085,1835.6,1835.5,19.02113]
[1746246094858,4.5938085,1835.6,1835.5,19.02113]
[1746246095055,3.4597085,1835.6,1835.5,19.02113]
[1746246095354,2.8672085,1835.6,1835.5,19.02113]
[1746246096050,10.88550846,1836.0,1835.9,1.089]
[1746246096251,10.88550846,1836.0,1835.9,7.7248]
[1746246096458,17.96230322,1836.2,1835.9,7.7248]
[1746246096459,1.5903,1836.2,1836.1,1.08888]
[1746246096859,1.5903,1836.2,1836.1,1.88218]
[1746246098862,0.8206,1836.3,1836.2,1.08882]
[1746246099053,0.8206,1836.3,1836.2,6.14192]
[1746246099259,1.6869,1836.5,1836.2,6.14192]
[1746246099260,1.6869,1836.5,1836.4,1.0887]
[1746246100051,1.6869,1836.5,1836.4,2.7052]
[1746246100554,2.77554,1836.5,1836.4,1.0887]
[1746246100759,1.0887,1836.4,1836.3,3.2078]
[1746246100957,1.08882,1836.2,1836.1,3.2078]
[1746246101156,4.80682,1836.2,1836.1,3.2078]
[1746246101659,6.54152,1836.2,1836.1,3.2078]
[1746246101859,5.4527,1836.2,1836.1,4.29668]
[1746246102160,0.8186,1836.3,1836.2,1.08882]
[1746246102356,0.8186,1836.3,1836.2,7.86582]
[1746246104861,1.08861,1836.6,1836.5,1.08864]
[1746246105061,0.8005,1836.7,1836.6,1.08858]
[1746246105259,3.2078,1837.1,1837.0,1.08835]
[1746246105462,3.2624,1837.1,1837.0,1.08835]
[1746246106460,1.08835,1837.0,1836.8,3.427]
[1746246106654,2.75325,1837.0,1836.8,7.72322]
[1746246107057,2.75325,1837.0,1836.9,1.0884]
[1746246107863,1.5917,1837.1,1837.0,1.08835]
[1746246108052,12.55040846,1837.2,1837.1,1.08829]
[1746246108762,12.55040846,1837.2,1837.1,4.51529]
[1746246109262,16.26840846,1837.2,1837.1,4.51529]
[1746246110063,5.3829,1837.2,1837.1,4.51529]
[1746246111161,1.5917,1837.4,1837.3,1.08817]
[1746246111555,4.42663,1837.4,1837.2,3.68048]
[1746246112062,1.7468,1837.3,1837.2,3.68048]
[1746246113061,5.4648,1837.3,1837.2,3.68048]
[1746246113858,3.718,1837.3,1837.2,6.88828]
[1746246114164,0.7941,1837.6,1837.5,1.08805]
[1746246114356,1.7468,1837.8,1837.7,1.08793]
[1746246115062,1.7468,1837.8,1837.7,2.76263]
[1746246115265,5.4648,1837.8,1837.7,2.76263]
[1746246115864,6.55267,1837.8,1837.7,2.76263]
[1746246116065,5.4648,1837.8,1837.6,1.08797]
[1746246116267,2.4468,1837.7,1837.6,1.08797]
[1746246117063,3.718,1837.8,1837.7,1.08793]
[1746246117264,4.8323,1837.9,1837.7,1.08793]
[1746246117464,1.6245,1837.8,1837.7,1.08793]
[1746246117666,2.71237,1837.8,1837.7,1.08793]
[1746246118165,6.43037,1837.8,1837.7,1.08793]
[1746246118366,5.3425,1837.8,1837.7,1.08793]
[1746246118569,6.43037,1837.8,1837.7,1.08793]
[1746246119867,5.3425,1837.8,1837.7,1.08793]
[1746246120067,3.718,1837.8,1837.7,2.78093]
[1746246120463,4.80587,1837.8,1837.7,1.08793]
[1746246120872,1.08793,1837.7,1837.6,3.2078]
[1746246121070,2.4811,1837.7,1837.6,4.29575]
[1746246121665,3.718,1837.8,1837.7,1.08793]
[1746246121865,5.3503,1837.8,1837.7,1.08793]
[1746246122058,5.3503,1837.8,1837.7,2.71603]
[1746246124675,6.43817,1837.8,1837.7,2.71603]
[1746246125468,6.43817,1837.8,1837.7,1.6281]
[1746246125670,1.08799,1837.6,1837.5,3.426]
[1746246126075,4.80599,1837.6,1837.5,3.426]
[1746246126270,6.42769,1837.6,1837.5,3.426]
[1746246127284,1.08817,1837.3,1837.2,3.473]
[1746246127573,1.08817,1837.3,1837.2,4.56123]
[1746246128180,4.80617,1837.3,1837.2,4.56123]
[1746246128379,4.80617,1837.3,1837.2,3.473]
[1746246129283,6.53967,1837.3,1837.2,3.473]
[1746246131087,1.08829,1837.1,1837.0,1.08834]
[1746246131585,1.08829,1837.1,1836.9,7.01626]
[1746246131789,2.75285,1837.0,1836.9,7.01626]
[1746246132088,2.75285,1837.0,1836.9,3.473]
[1746246132282,1.08846,1836.8,1836.7,6.6818]
[1746246132489,4.29626,1836.8,1836.7,3.474]
[1746246132684,1.08846,1836.8,1836.7,3.474]
[1746246132885,2.78166,1836.8,1836.7,3.474]
[1746246133084,6.49966,1836.8,1836.7,3.474]
[1746246133983,6.49966,1836.8,1836.7,4.56252]
[1746246134182,2.78166,1836.8,1836.7,6.28262]
[1746246134888,1.6645,1836.9,1836.8,1.08846]
[1746246135077,1.6645,1836.9,1836.8,3.66266]
[1746246135282,1.0884,1836.9,1836.8,3.66266]
[1746246135482,0.8467,1837.0,1836.9,1.0884]
[1746246135682,2.6765,1837.1,1837.0,1.08835]
[1746246136079,2.6765,1837.1,1836.9,2.80846]
[1746246136386,2.6765,1837.1,1837.0,1.08835]
[1746246136581,2.6765,1837.1,1837.0,1.7343]
[1746246136783,1.0884,1836.9,1836.8,4.0619]
[1746246136988,1.0884,1836.9,1836.8,1.94256]
[1746246137286,4.8064,1836.9,1836.8,3.67686]
[1746246138086,1.0884,1836.9,1836.8,3.67686]
[1746246138885,3.55399,1837.0,1836.8,3.67686]
[1746246139087,1.0884,1836.9,1836.8,3.67686]
[1746246139683,3.55399,1837.0,1836.9,1.0884]
[1746246139887,0.8142,1837.0,1836.9,2.7144]
[1746246140091,1.90255,1837.0,1836.9,2.7144]
[1746246142684,1.0884,1836.9,1836.8,1.08842]
[1746246142889,1.08846,1836.8,1836.7,6.15109]
[1746246143389,1.08846,1836.8,1836.7,3.474]
[1746246143688,2.82476,1836.8,1836.7,3.474]
[1746246144283,6.54276,1836.8,1836.7,3.474]
[1746246144985,6.54276,1836.8,1836.7,4.56252]
[1746246145179,3.718,1836.8,1836.7,6.26292]
[1746246145789,4.80646,1836.8,1836.7,6.26292]
[1746246145985,4.80646,1836.8,1836.7,5.1744]
[1746246146587,5.61076,1836.8,1836.7,6.26292]
[1746246151092,1.89276,1836.8,1836.7,5.1744]
[1746246151282,1.89276,1836.8,1836.7,6.26292]
[1746246153196,5.61076,1836.8,1836.7,6.26292]
[1746246156098,5.61076,1836.8,1836.7,5.1744]
[1746246157097,5.61076,1836.8,1836.7,6.26292]
[1746246157899,5.61076,1836.8,1836.7,3.474]
[1746246158297,1.89276,1836.8,1836.7,3.474]
[1746246158796,1.89276,1836.8,1836.7,5.0928]
[1746246159094,1.08852,1836.7,1836.6,4.56954]
[1746246159301,3.58602,1836.7,1836.6,4.56954]
[1746246159503,3.58602,1836.7,1836.6,6.18834]
[1746246167106,7.30402,1836.7,1836.6,6.18834]
[1746246167905,7.30402,1836.7,1836.6,4.56954]
[1746246168104,1.08847,1836.8,1836.7,1.08849]
[1746246168499,1.08847,1836.8,1836.7,1.6379]
[1746246168708,2.80327,1836.8,1836.7,1.6379]
[1746246169107,5.4328,1836.8,1836.7,2.72642]
[1746246169407,6.52126,1836.8,1836.7,2.72642]
[1746246170911,3.718,1836.8,1836.7,5.93422]
[1746246171107,1.08836,1837.0,1836.9,1.0884]
[1746246171603,6.5269,1837.1,1836.9,4.56935]
[1746246171800,4.031,1837.1,1837.0,1.08835]
[1746246171999,4.031,1837.1,1837.0,3.59815]
[1746246172000,3.2078,1837.1,1837.0,3.59815]
[1746246172196,6.9258,1837.1,1837.0,3.59815]
[1746246174608,3.718,1837.1,1837.0,3.59815]
[1746246176203,4.7879,1837.2,1837.1,1.08829]
[1746246176398,4.7879,1837.2,1837.1,3.54539]
[1746246176612,3.2078,1837.2,1837.1,3.54539]
[1746246177311,6.9258,1837.2,1837.1,3.54539]
[1746246179711,3.718,1837.2,1837.1,3.54539]
[1746246179908,3.718,1837.2,1837.1,6.75319]
[1746246180103,5.43255843,1837.4,1837.1,6.75319]
[1746246180309,5.43255843,1837.4,1837.3,1.08817]
[1746246180710,5.43255843,1837.4,1837.3,3.57287]
[1746246181110,5.43255843,1837.4,1837.3,6.78067]
[1746246182914,2.4202,1837.6,1837.5,1.08805]
[1746246183115,6.1382,1837.6,1837.5,1.08805]
[1746246183309,6.1382,1837.6,1837.5,2.80145]
[1746246184112,3.718,1837.6,1837.5,6.28145]
[1746246185113,5.4008,1837.6,1837.5,6.28145]
[1746246185514,3.718,1837.6,1837.5,9.48925]
[1746246186419,3.718,1837.6,1837.5,6.28145]
[1746246190921,3.718,1837.6,1837.5,4.56805]
[1746246191622,4.80599,1837.6,1837.5,4.56805]
[1746246191921,5.3459,1837.6,1837.5,4.56805]
[1746246193323,6.43389,1837.6,1837.5,4.56805]
[1746246193724,6.43389,1837.6,1837.5,3.48]
[1746246195425,6.43389,1837.6,1837.5,4.56805]
[1746246196125,8.5537,1837.6,1837.2,3.2078]
[1746246196322,3.2973,1837.5,1837.2,6.6778]
[1746246196627,2.66937,1837.4,1837.3,1.08816]
[1746246197223,6.38737,1837.4,1837.3,1.08816]
[1746246198225,5.2992,1837.4,1837.3,1.08816]
[1746246199026,6.38731,1837.4,1837.3,1.08816]
[1746246199231,1.08817,1837.3,1837.2,7.76598]
[1746246199525,2.78377,1837.3,1837.2,7.76598]
[1746246199828,2.78377,1837.3,1837.2,6.6778]
[1746246200229,6.50177,1837.3,1837.2,6.6778]
[1746246200420,6.50177,1837.3,1837.2,7.76603]
[1746246201923,6.50177,1837.3,1837.2,6.6778]
[1746246202221,1.08829,1837.1,1837.0,4.29614]
[1746246203124,2.75209,1837.1,1837.0,6.00594]
[1746246203530,1.6638,1837.1,1837.0,6.00594]
[1746246203829,2.75209,1837.1,1837.0,3.2078]
[1746246204327,6.47009,1837.1,1837.0,3.2078]
[1746246204932,1.08835,1837.0,1836.9,4.55837]
[1746246205230,6.47015,1837.0,1836.9,4.55837]
[1746246206032,6.47015,1837.0,1836.9,3.47]
[1746246208231,6.47015,1837.0,1836.9,4.5584]
[1746246208933,5.3818,1837.0,1836.9,4.5584]
[1746246209332,3.718,1837.0,1836.9,4.5584]
[1746246210222,3.2078,1837.2,1837.1,1.08829]
[1746246210830,6.52077843,1837.3,1837.0,2.5561]
[1746246211031,5.43255843,1837.3,1837.2,1.08823]
[1746246211237,5.43255843,1837.3,1837.2,4.55923]
[1746246211438,5.43255843,1837.3,1837.2,6.26863]
[1746246212138,9.15055843,1837.3,1837.2,6.26863]
[1746246213038,3.718,1837.3,1837.2,6.26863]
[1746246224739,3.718,1837.3,1837.2,11.26863]
[1746246224940,3.62411882,1837.6,1837.5,1.08805]
[1746246225241,3.62411882,1837.6,1837.5,7.76185]
[1746246225646,3.62411882,1837.6,1837.5,8.60485]
[1746246226147,7.34211882,1837.6,1837.5,8.60485]
[1746246226847,9.15055843,1837.6,1837.5,10.23935]
[1746246227843,9.15055843,1837.6,1837.5,15.23935]
[1746246228053,7.17121333,1837.8,1837.7,1.08793]
[1746246228349,7.17121333,1837.8,1837.7,4.29573]
[1746246228741,7.17121333,1837.8,1837.7,5.90993]
[1746246229245,10.88921333,1837.8,1837.7,5.90993]
[1746246231953,3.718,1837.8,1837.7,5.90993]
[1746246237557,3.718,1837.8,1837.7,4.29573]
[1746246237862,4.5315,1837.8,1837.6,1.08798]
[1746246238062,5.7832,1837.7,1837.6,3.465]
[1746246238558,3.718,1837.8,1837.7,1.08793]
[1746246238962,8.718,1837.8,1837.7,1.08793]
[1746246239263,3.718,1837.8,1837.7,1.08793]
[1746246240366,3.718,1837.8,1837.6,4.55295]
[1746246240668,0.7997,1837.7,1837.6,4.55295]
[1746246241165,4.5177,1837.7,1837.6,4.55295]
[1746246241669,3.718,1837.7,1837.6,4.55295]
[1746246242366,3.718,1837.7,1837.6,6.29265]
[1746246242968,3.718,1837.7,1837.6,14.50045]
[1746246243172,3.718,1837.7,1837.6,9.50045]
[1746246244769,3.718,1837.7,1837.6,14.50045]
[1746246245162,4.011,1838.2,1838.0,1.08771]
[1746246245163,5.09864,1838.2,1838.0,1.08771]
[1746246245363,5.09864,1838.2,1838.0,4.55271]
[1746246246173,8.81664,1838.2,1838.0,4.55271]
[1746246246977,1.08769,1838.1,1838.0,3.465]
[1746246247170,4.80569,1838.1,1838.0,3.465]
[1746246247570,4.80569,1838.1,1838.0,4.55275]
[1746246249766,3.718,1838.1,1838.0,4.55275]
[1746246250974,4.80569,1838.1,1838.0,4.55275]
[1746246254478,5.66259,1838.1,1838.0,4.55275]
[1746246255785,7.36119,1838.1,1838.0,4.55275]
[1746246262080,6.2735,1838.1,1838.0,4.55275]
[1746246262884,7.36119,1838.1,1838.0,4.55275]
[1746246264085,7.36119,1838.1,1838.0,3.465]
[1746246264582,7.36119,1838.1,1838.0,4.55275]
[1746246264778,7.36119,1838.1,1838.0,3.465]
[1746246267482,7.36119,1838.1,1838.0,4.55275]
[1746246269887,3.718,1838.1,1838.0,5.40585]
[1746246270882,4.80569,1838.1,1838.0,5.40585]
[1746246271076,3.718,1838.1,1838.0,5.40585]
[1746246276584,4.80569,1838.1,1838.0,5.40585]
[1746246276784,3.718,1838.1,1838.0,5.40585]
[1746246278487,4.80569,1838.1,1838.0,5.40585]
[1746246278688,6.44599,1838.1,1838.0,5.40585]
[1746246278986,6.44599,1838.1,1838.0,4.55275]
[1746246283283,9.65379,1838.1,1838.0,4.55275]
[1746246283587,9.65379,1838.1,1838.0,3.465]
[1746246283790,1.08775,1838.0,1837.9,6.22927]
[1746246283989,3.2345,1838.0,1837.9,6.22927]
[1746246284288,6.9525,1838.0,1837.9,6.22927]
[1746246284690,6.1328,1838.0,1837.9,6.22927]
[1746246286991,7.22055,1838.0,1837.9,6.22927]
[1746246287493,6.1328,1838.0,1837.9,6.22927]
[1746246287697,7.22055,1838.0,1837.9,6.22927]
[1746246288098,6.1328,1838.0,1837.9,6.22927]
[1746246288592,7.22055,1838.0,1837.9,3.459]
[1746246288793,7.22055,1838.0,1837.9,4.54681]
[1746246289896,7.22055,1838.0,1837.9,3.459]
[1746246292505,7.22055,1838.0,1837.9,4.54681]
[1746246292799,1.08787,1837.8,1837.7,3.62782]
[1746246293198,4.80587,1837.8,1837.7,1.08792]
[1746246293397,6.53947,1837.8,1837.7,1.08792]
[1746246294097,5.4516,1837.8,1837.7,1.08792]
[1746246294293,5.4516,1837.8,1837.7,2.73792]
[1746246294501,3.718,1837.8,1837.7,2.73792]
[1746246295798,3.718,1837.8,1837.7,3.56302]
[1746246298691,3.718,1837.8,1837.7,2.73792]
[1746246298896,4.80587,1837.8,1837.7,2.73792]
[1746246299198,6.43177,1837.8,1837.7,2.73792]
[1746246299401,5.3439,1837.8,1837.7,2.73792]
[1746246301899,3.718,1837.8,1837.7,2.73792]
[1746246309506,3.718,1837.8,1837.7,5.94572]
[1746246312100,5.62697,1837.8,1837.7,3.2078]
[1746246312308,6.1141,1837.8,1837.7,4.29573]
[1746246312709,6.1141,1837.8,1837.7,6.01753]
[1746246313609,6.1141,1837.8,1837.7,2.80973]
[1746246314010,3.718,1837.8,1837.7,2.80973]
[1746246319813,3.718,1837.8,1837.7,6.01753]
[1746246327917,3.718,1837.8,1837.7,2.80973]
[1746246328223,3.718,1837.8,1837.7,6.01753]
[1746246328616,3.718,1837.8,1837.7,2.80973]
[1746246328820,3.718,1837.8,1837.7,6.01753]
[1746246329116,3.718,1837.8,1837.7,2.80973]
[1746246329317,3.718,1837.8,1837.7,6.01753]
[1746246331319,4.80587,1837.8,1837.7,3.2078]
[1746246331511,3.718,1837.8,1837.6,3.459]
[1746246331715,3.3491,1837.7,1837.6,4.54695]
[1746246332211,7.0671,1837.7,1837.6,4.54695]
[1746246335824,8.15503,1837.7,1837.6,4.54695]
[1746246336116,7.0671,1837.7,1837.6,4.54695]
[1746246337413,8.15503,1837.7,1837.6,3.459]
[1746246337613,1.08811,1837.4,1837.3,10.47947545]
[1746246337819,1.08811,1837.4,1837.3,7.27167545]
[1746246338324,4.80611,1837.4,1837.3,7.27167545]
[1746246338726,6.45271,1837.4,1837.3,8.35984545]
[1746246341026,5.3646,1837.4,1837.3,8.35984545]
[1746246342126,6.45271,1837.4,1837.3,7.27167545]
[1746246342327,8.04211,1837.4,1837.3,8.35984545]
[1746246342625,8.04211,1837.4,1837.3,1.08817]
[1746246343527,8.04211,1837.4,1837.2,4.54019]
[1746246343728,1.7236,1837.3,1837.2,4.54019]
[1746246344326,5.4416,1837.3,1837.2,4.54019]
[1746246344527,6.52977,1837.3,1837.2,4.54019]
[1746246349732,5.4416,1837.3,1837.2,4.54019]
[1746246360841,6.52977,1837.3,1837.2,4.54019]
[1746246361441,5.4416,1837.3,1837.2,4.54019]
[1746246361841,6.52977,1837.3,1837.2,4.54019]
[1746246363548,5.4416,1837.3,1837.2,4.54019]
[1746246365439,6.52977,1837.3,1837.2,4.54019]
[1746246366653,5.4416,1837.3,1837.2,4.54019]
[1746246366842,3.718,1837.3,1837.2,5.36689]
[1746246368155,3.718,1837.3,1837.2,1.91489]
[1746246368355,5.3266,1837.3,1837.2,1.91489]
[1746246375860,6.41477,1837.3,1837.2,1.91489]
[1746246376059,5.3266,1837.3,1837.2,1.91489]
[1746246376761,5.3266,1837.3,1837.2,1.08819]
[1746246379759,5.3266,1837.3,1837.2,4.52719]
[1746246383761,6.41477,1837.3,1837.2,4.52719]
[1746246384758,5.3266,1837.3,1837.2,4.52719]
[1746246385366,6.41477,1837.3,1837.2,4.52719]